bitfinex-derivatives/quotes_BTCF0:USTF0_20210705
["timestamp","ask_amount","ask_price","bid_price","bid_amount"]
[1625491652236,2.49368262,33564.0,33563.0,0.81065871]
[1625491652855,2.49368262,33564.0,33563.0,1.5131391]
[1625491653895,2.49368262,33564.0,33563.0,1.5721391]
[1625491654041,2.47771669,33564.0,33563.0,1.5721391]
[1625491654369,2.47771669,33564.0,33563.0,2.62600609]
[1625491654370,1.44237261,33564.0,33563.0,2.62600609]
[1625491655144,1.45833641,33564.0,33563.0,2.62600609]
[1625491656399,2.49470972,33564.0,33563.0,2.62600609]
[1625491657498,2.49470972,33564.0,33563.0,2.68500609]
[1625491658200,1.45833641,33564.0,33563.0,2.68500609]
[1625491658653,2.49498464,33564.0,33563.0,2.68500609]
[1625491659209,0.25653924,33564.0,33563.0,2.68500609]
[1625491659405,1.46609605,33564.0,33563.0,2.68500609]
[1625491659755,2.50253175,33564.0,33563.0,2.68500609]
[1625491660207,2.48656795,33564.0,33563.0,2.68500609]
[1625491660558,2.48656795,33564.0,33563.0,3.91578393]
[1625491661059,2.50253207,33564.0,33563.0,3.91578393]
[1625491661813,2.50253207,33564.0,33563.0,2.68500609]
[1625491662411,2.48656795,33564.0,33563.0,2.68500609]
[1625491662662,2.50253195,33564.0,33563.0,2.68500609]
[1625491662962,2.50253195,33564.0,33563.0,3.91636152]
[1625491664367,3.71503202,33564.0,33563.0,3.91636152]
[1625491666113,3.69906802,33564.0,33563.0,3.91636152]
[1625491666669,3.69906802,33564.0,33563.0,5.32502519]
[1625491666922,3.715032,33564.0,33563.0,5.32502519]
[1625491667175,3.69906802,33564.0,33563.0,5.32502519]
[1625491669026,3.45849258,33564.0,33563.0,5.32502519]
[1625491670527,3.45849258,33564.0,33563.0,5.80617607]
[1625491673935,3.47444509,33564.0,33563.0,5.80617607]
[1625491678299,3.47444509,33564.0,33563.0,5.56560063]
[1625491680355,3.45849258,33564.0,33563.0,5.56560063]
[1625491680454,3.45849258,33564.0,33563.0,5.51809899]
[1625491680455,2.24599251,33564.0,33563.0,5.51809899]
[1625491680555,2.24599251,33564.0,33563.0,5.75867443]
[1625491680923,0.60241557,33567.0,33563.0,9.10570878]
[1625491681007,0.60241557,33567.0,33563.0,9.04670878]
[1625491681123,0.60241557,33567.0,33564.0,0.01149292]
[1625491681221,0.60241557,33567.0,33564.0,0.07441368]
[1625491681309,0.60241557,33567.0,33565.0,0.01149247]
[1625491681408,0.60241557,33567.0,33565.0,0.01541499]
[1625491681509,0.51608596,33568.0,33565.0,0.01541499]
[1625491681510,0.25847667,33568.0,33566.0,6.52924567]
[1625491681611,0.25847667,33568.0,33566.0,6.58824567]
[1625491681708,0.25847667,33568.0,33567.0,0.01149213]
[1625491682011,0.25856406,33569.0,33567.0,6.59192383]
[1625491682109,0.25856406,33569.0,33568.0,0.01149142]
[1625491682211,0.25856406,33569.0,33568.0,0.01541996]
[1625491682412,0.25856406,33569.0,33568.0,0.07441996]
[1625491682514,0.0862454,33569.0,33568.0,6.65066282]
[1625491682613,0.0862454,33569.0,33568.0,7.1318137]
[1625491682967,0.25874845,33570.0,33568.0,7.1318137]
[1625491683166,0.25874845,33570.0,33568.0,7.12032228]
[1625491683416,0.25874845,33570.0,33569.0,6.51588893]
[1625491683517,0.25874845,33570.0,33569.0,6.57488893]
[1625491683617,0.25874845,33570.0,33569.0,6.63388893]
[1625491683718,0.25874845,33570.0,33569.0,6.6453708]
[1625491684068,0.25874845,33570.0,33569.0,6.63388893]
[1625491684399,1.20719914,33570.0,33569.0,5.04989859]
[1625491684572,1.22309013,33570.0,33569.0,5.04989859]
[1625491684772,1.22309013,33570.0,33569.0,4.99089859]
[1625491684872,2.2570571,33570.0,33569.0,4.99089859]
[1625491685373,2.2570571,33570.0,33569.0,3.58290717]
[1625491685374,3.46286459,33570.0,33569.0,3.58290717]
[1625491685473,3.46286459,33570.0,33569.0,3.52390717]
[1625491685774,3.46286459,33570.0,33569.0,2.29191468]
[1625491686227,4.84008725,33570.0,33569.0,2.29191468]
[1625491686526,5.08066269,33570.0,33569.0,2.29191468]
[1625491687678,3.70344003,33570.0,33569.0,2.29191468]
[1625491688078,5.08119748,33570.0,33569.0,2.29191468]
[1625491688329,5.08119748,33570.0,33569.0,2.35091468]
[1625491688582,3.70344003,33570.0,33569.0,3.58290188]
[1625491688781,4.00227003,33570.0,33569.0,3.58290188]
[1625491688930,4.00227003,33570.0,33569.0,3.52390188]
[1625491689030,4.00227003,33570.0,33569.0,2.35091468]
[1625491689132,4.00227003,33570.0,33569.0,2.29191468]
[1625491689332,4.00227003,33570.0,33569.0,6.88311468]
[1625491689729,3.98637904,33570.0,33569.0,6.88311468]
[1625491689785,2.48174155,33570.0,33569.0,8.11485623]
[1625491690191,1.44777458,33570.0,33569.0,9.52256679]
[1625491690639,2.48165406,33570.0,33569.0,9.52256679]
[1625491691439,1.44777458,33570.0,33569.0,9.52256679]
[1625491691790,0.75797113,33570.0,33569.0,9.52256679]
[1625491693091,0.75739376,33570.0,33569.0,9.52256679]
[1625491693743,0.49913338,33570.0,33569.0,9.52256679]
[1625491694253,0.49913338,33570.0,33569.0,9.51863816]
[1625491694444,0.49913338,33570.0,33569.0,9.5225748]
[1625491695095,0.84334608,33570.0,33569.0,9.5225748]
[1625491695946,0.84334608,33570.0,33569.0,5.0493748]
[1625491696070,0.84334608,33570.0,33569.0,4.9903748]
[1625491696247,1.10076668,33570.0,33569.0,4.9903748]
[1625491696648,2.47488426,33570.0,33569.0,3.58266424]
[1625491697196,2.47488426,33570.0,33569.0,3.64166424]
[1625491697497,1.44392045,33570.0,33569.0,3.64166424]
[1625491697951,0.75655398,33570.0,33569.0,5.04794302]
[1625491698599,0.67064416,33570.0,33569.0,5.04794302]
[1625491698698,0.84270602,33570.0,33569.0,5.04794302]
[1625491699728,0.24057544,33570.0,33569.0,5.04794302]
[1625491700805,0.08615477,33572.0,33569.0,5.04794302]
[1625491700903,0.08615477,33572.0,33571.0,1.40580612]
[1625491701003,0.08615477,33572.0,33571.0,4.92032143]
[1625491701104,0.08615477,33572.0,33571.0,5.03832143]
[1625491701305,0.60284165,33572.0,33571.0,5.04225786]
[1625491701706,0.2584411,33572.0,33571.0,5.04225786]
[1625491701906,0.2584411,33572.0,33571.0,4.98325786]
[1625491702007,0.60273264,33572.0,33571.0,3.57745174]
[1625491702459,0.860572,33572.0,33571.0,3.57745174]
[1625491702963,0.860572,33572.0,33571.0,3.63645174]
[1625491705017,0.51646841,33572.0,33571.0,3.63645174]
[1625491706271,0.51646841,33572.0,33571.0,8.55615174]
[1625491706571,0.86046414,33572.0,33571.0,8.55615174]
[1625491707124,0.81986414,33572.0,33571.0,8.55615174]
[1625491708380,0.47587792,33572.0,33571.0,8.55615174]
[1625491708728,0.47587792,33572.0,33571.0,9.96181262]
[1625491708729,0.5620658,33572.0,33571.0,9.96181262]
[1625491709282,0.25834982,33573.0,33571.0,9.96181262]
[1625491709686,0.25834982,33573.0,33572.0,0.00393526]
[1625491709785,0.25837426,33574.0,33572.0,5.21533543]
[1625491709886,0.25837426,33574.0,33572.0,5.33333543]
[1625491710285,0.25837426,33574.0,33573.0,0.00393513]
[1625491710387,0.25837426,33574.0,33573.0,0.12193513]
[1625491710687,0.25843305,33575.0,33573.0,5.04065655]
[1625491710789,0.25843305,33575.0,33574.0,0.48115088]
[1625491710889,0.25843305,33575.0,33574.0,0.54015088]
[1625491710987,0.25843305,33575.0,33574.0,0.59915088]
[1625491711087,0.25843305,33575.0,33574.0,0.60308594]
[1625491711288,0.25843305,33575.0,33574.0,5.52171271]
[1625491711689,0.90375647,33581.0,33574.0,5.52171271]
[1625491711805,0.49905647,33581.0,33574.0,5.52171271]
[1625491711927,0.25859828,33578.0,33574.0,5.52171271]
[1625491712034,0.25859828,33578.0,33575.0,0.0114522]
[1625491712100,0.19959828,33578.0,33575.0,0.0114522]
[1625491712191,0.19959828,33578.0,33575.0,0.01538584]
[1625491712402,0.29128604,33579.0,33576.0,0.0153841]
[1625491712490,0.20258604,33579.0,33576.0,0.0153841]
[1625491712592,0.20258604,33579.0,33576.0,0.0743841]
[1625491712700,0.20258604,33579.0,33577.0,0.01144954]
[1625491712891,0.20258604,33579.0,33578.0,0.48115088]
[1625491712991,0.18518604,33579.0,33578.0,0.49260046]
[1625491713093,0.29757544,33599.0,33578.0,0.49260046]
[1625491713094,0.17275754,33587.0,33578.0,0.55160046]
[1625491713192,0.17275754,33587.0,33578.0,0.55553369]
[1625491713294,0.17275754,33587.0,33579.0,0.0114496]
[1625491713390,0.17275754,33587.0,33579.0,0.2722696]
[1625491713490,0.17275754,33587.0,33579.0,0.33520283]
[1625491713593,0.69059658,33597.0,33586.0,4.55756794]
[1625491713692,0.69059658,33597.0,33586.0,4.89101794]
[1625491713792,0.69059658,33597.0,33586.0,4.95001794]
[1625491713992,0.69059658,33597.0,33587.0,0.00393696]
[1625491714093,0.69059658,33597.0,33594.0,1.75292165]
[1625491714294,0.69059658,33597.0,33594.0,1.81192165]
[1625491714795,0.69059658,33597.0,33594.0,2.29307253]
[1625491714895,1.0514,33595.0,33594.0,2.53364797]
[1625491715044,0.9611,33595.0,33594.0,2.53364797]
[1625491715146,0.9611,33595.0,33594.0,1.48189498]
[1625491715950,0.9611,33595.0,33594.0,0.78072632]
[1625491717051,1.0201,33595.0,33594.0,0.78072632]
[1625491717300,2.74125328,33595.0,33594.0,0.78072632]
[1625491717802,2.74125328,33595.0,33594.0,0.72172632]
[1625491717904,3.94503511,33595.0,33594.0,0.48115088]
[1625491718157,3.94503511,33595.0,33594.0,0.54015088]
[1625491718356,3.94503511,33595.0,33594.0,0.48115088]
[1625491718918,4.18561055,33595.0,33594.0,0.54015088]
[1625491719258,4.40594055,33595.0,33594.0,0.54015088]
[1625491720762,3.20215872,33595.0,33594.0,0.54015088]
[1625491722812,4.40927402,33595.0,33594.0,0.54015088]
[1625491723264,3.20215872,33595.0,33594.0,0.54015088]
[1625491726273,2.16950117,33595.0,33594.0,0.54015088]
[1625491726573,3.20428935,33595.0,33594.0,0.54015088]
[1625491726975,3.20428935,33595.0,33594.0,0.48115088]
[1625491727378,3.20428935,33595.0,33594.0,0.54015088]
[1625491728028,2.16950117,33595.0,33594.0,0.54015088]
[1625491728731,1.94917117,33595.0,33594.0,0.54015088]
[1625491728987,1.26067544,33595.0,33594.0,0.54015088]
[1625491729383,1.20167544,33595.0,33594.0,0.54015088]
[1625491729481,1.26067544,33595.0,33594.0,0.54015088]
[1625491729687,1.0201,33595.0,33594.0,0.54015088]
[1625491734246,0.24057544,33599.0,33594.0,0.54015088]
[1625491734346,0.98362042,33600.0,33594.0,0.59915088]
[1625491734577,0.2929,33600.0,33594.0,0.59915088]
[1625491734897,0.2929,33600.0,33596.0,0.69886355]
[1625491735047,0.2929,33600.0,33596.0,0.75786355]
[1625491735147,0.2929,33600.0,33599.0,0.48115088]
[1625491735247,0.69177543,33604.0,33599.0,0.87329088]
[1625491735547,0.69177543,33604.0,33603.0,4.3877]
[1625491735749,0.69177543,33604.0,33603.0,4.5057]
[1625491736098,0.6910722,33606.0,33603.0,4.5057]
[1625491736298,0.6910722,33606.0,33603.0,0.118]
[1625491737202,0.6910722,33606.0,33605.0,0.24057544]
[1625491737301,0.6910722,33606.0,33605.0,0.29957544]
[1625491737700,1.03652194,33607.0,33605.0,0.29957544]
[1625491737701,0.6912819,33607.0,33605.0,0.29957544]
[1625491739270,0.6912819,33607.0,33606.0,0.24057544]
[1625491739605,0.6912819,33607.0,33606.0,0.35857544]
[1625491739865,2.14144335,33609.0,33606.0,0.35857544]
[1625491739997,0.93193104,33609.0,33606.0,0.35857544]
[1625491740345,0.24057544,33609.0,33606.0,0.35857544]
[1625491740615,0.69187986,33611.0,33606.0,0.35857544]
[1625491740860,0.69199448,33612.0,33606.0,0.35857544]
[1625491741360,0.9501,33613.0,33611.0,0.48115088]
[1625491741465,0.9501,33613.0,33611.0,0.74066088]
[1625491741664,0.9501,33613.0,33611.0,0.79966088]
[1625491742061,0.9501,33613.0,33611.0,0.85866088]
[1625491742214,0.69223016,33615.0,33611.0,0.85866088]
[1625491742421,1.03825874,33616.0,33611.0,0.85866088]
[1625491742422,0.69265591,33616.0,33611.0,0.85866088]
[1625491742616,0.69265591,33616.0,33614.0,3.9928]
[1625491742825,0.69265591,33616.0,33614.0,4.1108]
[1625491742963,0.69278196,33617.0,33614.0,4.1108]
[1625491743333,0.69278196,33617.0,33616.0,0.24057544]
[1625491743418,0.69278196,33617.0,33616.0,0.29957544]
[1625491743526,0.93319579,33623.0,33616.0,0.35857544]
[1625491743631,0.69262035,33623.0,33616.0,0.35857544]
[1625491744324,0.2929,33625.0,33616.0,0.35857544]
[1625491744325,0.98609444,33625.0,33616.0,0.35857544]
[1625491745170,0.2929,33625.0,33616.0,0.35857544]
[1625491745320,0.2929,33625.0,33624.0,0.48115088]
[1625491745420,0.69234247,33626.0,33624.0,0.54015088]
[1625491745649,0.69234247,33626.0,33624.0,0.48115088]
[1625491745870,0.75134247,33626.0,33624.0,0.48115088]
[1625491746121,1.72978253,33625.0,33624.0,0.48115088]
[1625491746319,2.02144253,33625.0,33624.0,0.48115088]
[1625491746523,3.23182411,33625.0,33624.0,0.48115088]
[1625491747296,2.02144253,33625.0,33624.0,0.48115088]
[1625491747373,2.26201797,33625.0,33624.0,0.24057544]
[1625491747503,2.26201797,33625.0,33616.0,0.24057544]
[1625491747594,2.32101797,33625.0,33616.0,0.24057544]
[1625491747777,4.9108324,33625.0,33616.0,0.24057544]
[1625491748168,0.6907219,33619.0,33616.0,0.24057544]
[1625491748325,0.7497219,33619.0,33616.0,0.24057544]
[1625491748975,0.059,33619.0,33616.0,0.24057544]
[1625491749376,0.24057544,33617.0,33616.0,0.24057544]
[1625491749475,0.47408544,33617.0,33616.0,0.24057544]
[1625491757040,0.24057544,33617.0,33616.0,0.24057544]
[1625491757868,0.24057544,33617.0,33616.0,0.50019544]
[1625491758249,0.24057544,33617.0,33616.0,0.55919544]
[1625491758444,0.24057544,33617.0,33616.0,0.61819544]
[1625491764161,0.24057544,33617.0,33616.0,0.35857544]
[1625491764511,0.24057544,33617.0,33616.0,0.29957544]
[1625491767070,0.25641943,33617.0,33616.0,0.29957544]
[1625491771635,0.25641943,33617.0,33616.0,0.30351371]
[1625491776991,0.25641943,33617.0,33616.0,0.51593371]
[1625491779349,0.48499943,33617.0,33616.0,0.00393827]
[1625491779458,0.54399943,33617.0,33616.0,0.00393827]
[1625491779851,1.02515031,33617.0,33616.0,0.00393827]
[1625491779951,1.02515031,33617.0,33612.0,0.00393971]
[1625491780154,0.01584202,33616.0,33610.0,0.00393979]
[1625491780253,0.07484202,33616.0,33612.0,0.059]
[1625491780455,0.07484202,33616.0,33613.0,0.00393985]
[1625491780555,0.69450823,33615.0,33612.0,0.059]
[1625491780654,0.75350823,33615.0,33612.0,0.059]
[1625491780753,0.76935045,33615.0,33612.0,0.059]
[1625491780953,0.71046054,33614.0,33612.0,0.059]
[1625491781053,0.76946054,33614.0,33612.0,0.059]
[1625491781305,0.01584248,33613.0,33612.0,0.059]
[1625491781518,0.07484248,33613.0,33612.0,0.06294009]
[1625491781653,0.07484248,33613.0,33612.0,0.00394009]
[1625491781805,0.31541792,33613.0,33612.0,0.00394009]
[1625491782055,0.31541792,33613.0,33609.0,0.00393991]
[1625491782354,0.0158425,33612.0,33609.0,0.00393991]
[1625491783808,0.24057544,33610.0,33609.0,0.00393991]
[1625491783910,0.56094544,33610.0,33609.0,0.00393991]
[1625491784310,0.57678769,33610.0,33609.0,0.00393991]
[1625491785063,0.57678769,33610.0,33609.0,0.70366204]
[1625491787064,0.56094544,33610.0,33609.0,0.70366204]
[1625491787166,0.24057544,33610.0,33609.0,0.70366204]
[1625491787865,0.24057544,33610.0,33609.0,1.75411051]
[1625491788264,0.24057544,33610.0,33609.0,0.70366204]
[1625491788667,0.24057544,33610.0,33609.0,1.7549908]
[1625491789070,0.24057544,33610.0,33609.0,2.0632608]
[1625491789170,0.24057544,33610.0,33609.0,3.28990753]
[1625491790322,0.69629129,33612.0,33609.0,3.34890753]
[1625491790430,0.69629129,33612.0,33609.0,3.40790753]
[1625491790773,0.69629129,33612.0,33610.0,0.00393905]
[1625491790873,0.69629129,33612.0,33610.0,0.12193905]
[1625491790973,0.24057544,33613.0,33611.0,4.38043737]
[1625491791075,0.24057544,33613.0,33611.0,4.49843737]
[1625491791323,0.24057544,33613.0,33612.0,0.00393857]
[1625491791470,0.24057544,33613.0,33612.0,0.06293857]
[1625491791525,0.24057544,33613.0,33612.0,3.45052693]
[1625491791623,0.24057544,33613.0,33612.0,4.5016601]
[1625491791873,0.24057544,33613.0,33612.0,4.74223554]
[1625491792023,0.24057544,33613.0,33612.0,6.32000224]
[1625491793880,0.24057544,33613.0,33612.0,4.74223554]
[1625491794330,0.24057544,33613.0,33612.0,6.3211852]
[1625491798140,0.69912768,33617.0,33612.0,6.3211852]
[1625491798243,0.69912768,33617.0,33616.0,4.6949]
[1625491798341,0.69912768,33617.0,33616.0,4.7539]
[1625491798440,0.69912768,33617.0,33616.0,4.8129]
[1625491798693,0.69912768,33617.0,33616.0,5.04576821]
[1625491798843,0.69912768,33617.0,33616.0,9.43541535]
[1625491799796,1.75193794,33617.0,33616.0,9.43541535]
[1625491799946,1.75193794,33617.0,33616.0,9.67599079]
[1625491800196,0.69912768,33617.0,33616.0,9.67599079]
[1625491802752,0.78912768,33617.0,33616.0,9.67599079]
[1625491802852,0.69912768,33617.0,33616.0,9.67599079]
[1625491803454,1.2257371,33617.0,33616.0,10.20301955]
[1625491804306,1.2257371,33617.0,33616.0,11.7838947]
[1625491804307,0.52660942,33617.0,33616.0,11.7838947]
[1625491805408,0.52660942,33617.0,33616.0,11.79533632]
[1625491805745,0.52704318,33619.0,33616.0,11.79533632]
[1625491806019,0.52704318,33619.0,33618.0,0.24057544]
[1625491806209,1.05391074,33621.0,33618.0,6.85481002]
[1625491806210,1.22925255,33621.0,33618.0,6.85481002]
[1625491806477,1.22925255,33621.0,33619.0,0.00393607]
[1625491806610,1.22925255,33621.0,33619.0,0.06293607]
[1625491806711,1.22933041,33622.0,33620.0,6.49461477]
[1625491806811,1.22933041,33622.0,33620.0,6.55361477]
[1625491806913,1.22933041,33622.0,33620.0,6.61261477]
[1625491807012,1.22933041,33622.0,33621.0,0.00393596]
[1625491807210,0.52684719,33624.0,33621.0,6.55333803]
[1625491807310,0.52684719,33624.0,33621.0,6.61233803]
[1625491807610,0.52684719,33624.0,33622.0,0.00393576]
[1625491807712,0.52684719,33624.0,33622.0,0.06293576]
[1625491807810,0.9151,33625.0,33622.0,0.06293576]
[1625491808012,0.9151,33625.0,33624.0,0.72172632]
[1625491808111,0.9151,33625.0,33624.0,0.78072632]
[1625491808413,1.44192706,33625.0,33624.0,5.6951646]
[1625491808513,1.44192706,33625.0,33624.0,5.7541646]
[1625491808867,0.9151,33625.0,33624.0,5.7541646]
[1625491812321,0.9151,33625.0,33624.0,5.6951646]
[1625491812550,4.41583797,33625.0,33624.0,2.00933589]
[1625491812746,4.41583797,33625.0,33624.0,1.95033589]
[1625491812921,4.41583797,33625.0,33624.0,1.24827328]
[1625491813122,4.72818797,33625.0,33624.0,1.24827328]
[1625491813323,6.12746593,33625.0,33624.0,0.72172632]
[1625491814026,6.36804137,33625.0,33624.0,0.72172632]
[1625491814278,6.36804137,33625.0,33622.0,1.22743449]
[1625491814387,6.36804137,33625.0,33621.0,0.27892176]
[1625491814544,6.36804137,33625.0,33607.0,0.057]
[1625491814545,6.42704137,33625.0,33607.0,0.057]
[1625491814635,0.0158435,33624.0,33594.0,0.0893]
[1625491814739,0.0158435,33624.0,33619.0,0.52608563]
[1625491814796,0.0748435,33624.0,33619.0,0.52608563]
[1625491815125,0.1338435,33624.0,33619.0,0.52608563]
[1625491815181,0.057,33619.0,33604.0,1.57846462]
[1625491815309,0.057,33619.0,33604.0,1.63746462]
[1625491815382,0.116,33619.0,33605.0,0.00393814]
[1625491815477,1.56799411,33618.0,33605.0,0.00393814]
[1625491815632,1.56799411,33618.0,33605.0,0.12193814]
[1625491815633,1.97099411,33618.0,33605.0,0.12193814]
[1625491815890,1.56709523,33617.0,33605.0,0.12193814]
[1625491815984,1.56709523,33617.0,33605.0,0.35857544]
[1625491816083,0.37543819,33606.0,33605.0,0.35857544]
[1625491816185,0.71369819,33606.0,33605.0,0.35857544]
[1625491816437,0.71369819,33606.0,33605.0,0.36251402]
[1625491816837,0.71369819,33606.0,33605.0,0.30351402]
[1625491817893,0.71369819,33606.0,33605.0,0.29957544]
[1625491820445,0.71369819,33606.0,33605.0,0.24057544]
[1625491820695,0.71369819,33606.0,33605.0,0.29957544]
[1625491821448,0.71369819,33606.0,33605.0,0.24057544]
[1625491821546,0.71369819,33606.0,33605.0,0.29957544]
[1625491822300,0.71369819,33606.0,33605.0,0.35857544]
[1625491822400,0.71369819,33606.0,33605.0,0.29957544]
[1625491828312,0.71369819,33606.0,33605.0,0.35857544]
[1625491828413,0.71369819,33606.0,33605.0,0.29957544]
[1625491828514,0.71369819,33606.0,33605.0,0.35857544]
[1625491829115,0.71369819,33606.0,33605.0,0.29957544]
[1625491830971,0.71369819,33606.0,33605.0,0.059]
[1625491833174,1.0614953,33606.0,33605.0,0.059]
[1625491833424,1.0614953,33606.0,33605.0,0.118]
[1625491833924,0.71369819,33606.0,33605.0,0.118]
[1625491834826,0.71369819,33606.0,33605.0,1.34457799]
[1625491837531,0.71369819,33606.0,33605.0,2.7461713]
[1625491838294,0.71369819,33606.0,33605.0,1.34457799]
[1625491839584,0.71369819,33606.0,33605.0,1.3484965]
[1625491840387,0.71369819,33606.0,33605.0,2.75001124]
[1625491840887,0.71369819,33606.0,33605.0,1.3484965]
[1625491841175,0.83169819,33606.0,33604.0,1.12674345]
[1625491841719,0.83169819,33606.0,33604.0,0.62664345]
[1625491841745,0.83169819,33606.0,33540.0,5.60637243]
[1625491841746,1.17928319,33606.0,33603.0,1.22648645]
[1625491841789,0.01593541,33605.0,33603.0,1.22648645]
[1625491841896,0.01593541,33605.0,33603.0,0.72638645]
[1625491841992,0.07493541,33605.0,33603.0,0.72638645]
[1625491842090,0.13393541,33605.0,33603.0,0.72638645]
[1625491842193,0.13393541,33605.0,33603.0,0.22628645]
[1625491842310,5.1344,33603.0,33602.0,0.62778526]
[1625491842392,5.1934,33603.0,33602.0,0.62778526]
[1625491842491,0.059,33602.0,33598.0,1.57691116]
[1625491842695,0.118,33602.0,33598.0,1.57691116]
[1625491842801,0.118,33602.0,33600.0,0.35045337]
[1625491842893,0.118,33602.0,33591.0,1.57704018]
[1625491842993,0.059,33600.0,33591.0,1.57704018]
[1625491843093,0.118,33600.0,33591.0,1.57704018]
[1625491843383,0.118,33600.0,33586.0,5.84066687]
[1625491843384,0.118,33600.0,33586.0,5.66563297]
[1625491843445,0.175,33600.0,33592.0,0.00391842]
[1625491843545,0.118,33600.0,33592.0,0.00391842]
[1625491843643,0.118,33600.0,33588.0,0.00391853]
[1625491844254,0.0159313,33599.0,33588.0,0.00391853]
[1625491844351,0.72172632,33589.0,33588.0,0.00391853]
[1625491844445,0.94032632,33589.0,33588.0,0.00391853]
[1625491844568,0.99932632,33589.0,33588.0,0.00391853]
[1625491845053,0.99932632,33589.0,33588.0,1.05468393]
[1625491845749,0.94032632,33589.0,33588.0,1.05468393]
[1625491846150,0.99932632,33589.0,33588.0,1.05468393]
[1625491846256,0.94032632,33589.0,33588.0,1.05468393]
[1625491847106,0.72172632,33589.0,33588.0,1.05468393]
[1625491847356,0.36688,33596.0,33588.0,1.05468393]
[1625491847460,0.30988,33596.0,33588.0,1.05468393]
[1625491847555,0.42788,33596.0,33588.0,1.05468393]
[1625491847759,0.42788,33596.0,33589.0,0.00391844]
[1625491848005,0.42788,33596.0,33592.0,1.04970903]
[1625491848306,0.42788,33596.0,33593.0,0.00391841]
[1625491849109,0.42788,33596.0,33592.0,0.00391848]
[1625491849407,0.42788,33596.0,33594.0,0.00391851]
[1625491849657,0.42788,33596.0,33592.0,0.00391851]
[1625491849957,0.42788,33596.0,33591.0,1.04972094]
[1625491850157,0.42788,33596.0,33593.0,0.00391849]
[1625491850357,0.96230176,33594.0,33593.0,0.00391849]
[1625491850458,1.02130176,33594.0,33591.0,1.04972094]
[1625491850858,1.02130176,33594.0,33589.0,1.04924574]
[1625491851307,1.02130176,33594.0,33590.0,0.0039186]
[1625491852060,1.02130176,33594.0,33589.0,1.04924574]
[1625491852161,0.0894,33593.0,33589.0,1.04924574]
[1625491852262,0.96230176,33594.0,33588.0,5.33900017]
[1625491852362,0.24057544,33589.0,33588.0,5.33900017]
[1625491852461,0.46589544,33589.0,33588.0,5.33900017]
[1625491852570,0.52489544,33589.0,33588.0,5.33900017]
[1625491852661,0.52489544,33589.0,33588.0,4.2902]
[1625491852864,0.52489544,33589.0,33588.0,4.29411889]
[1625491853614,0.52489544,33589.0,33588.0,4.2902]
[1625491854888,0.52489544,33589.0,33586.0,1.04837128]
[1625491855197,0.52489544,33589.0,33585.0,1.0483343]
[1625491855278,0.58389544,33589.0,33585.0,1.0483343]
[1625491855570,0.58389544,33589.0,33580.0,1.04858688]
[1625491855879,0.58389544,33589.0,33580.0,1.10758688]
[1625491856270,0.58389544,33589.0,33580.0,0.059]
[1625491856370,0.48115088,33581.0,33580.0,0.059]
[1625491856472,0.86015088,33581.0,33580.0,0.059]
[1625491858774,0.80115088,33581.0,33580.0,0.059]
[1625491859125,0.86015088,33581.0,33580.0,0.059]
[1625491859326,0.80115088,33581.0,33580.0,0.059]
[1625491859425,0.24057544,33581.0,33580.0,0.059]
[1625491859639,0.057,33588.0,33580.0,0.059]
[1625491859650,0.24057544,33589.0,33580.0,0.059]
[1625491859727,0.24057544,33589.0,33580.0,0.30403]
[1625491859946,0.24057544,33589.0,33582.0,1.04710996]
[1625491860054,0.29957544,33589.0,33582.0,1.04710996]
[1625491860227,0.24057544,33589.0,33583.0,1.04705558]
[1625491860337,0.29957544,33589.0,33583.0,1.04705558]
[1625491860444,0.59915088,33589.0,33588.0,0.24057544]
[1625491860976,0.54015088,33589.0,33588.0,0.24057544]
[1625491861177,0.59915088,33589.0,33588.0,0.24057544]
[1625491861750,0.68725088,33589.0,33588.0,0.24057544]
[1625491862435,0.59915088,33589.0,33588.0,0.24057544]
[1625491863437,0.68885088,33589.0,33588.0,0.24057544]
[1625491864240,0.59915088,33589.0,33588.0,0.24057544]
[1625491864894,0.59915088,33589.0,33583.0,1.04703325]
[1625491865095,0.80417088,33589.0,33583.0,1.04703325]
[1625491865297,0.80417088,33589.0,33582.0,1.04693864]
[1625491866048,0.80417088,33589.0,33581.0,1.04709795]
[1625491866149,0.0885,33588.0,33581.0,1.10609795]
[1625491866299,0.1475,33588.0,33581.0,1.10609795]
[1625491866398,0.059,33588.0,33581.0,1.10609795]
[1625491866499,0.059,33588.0,33584.0,0.24057544]
[1625491867499,0.0894,33587.0,33584.0,0.24057544]
[1625491867699,0.1484,33587.0,33584.0,0.24057544]
[1625491868451,0.24057544,33585.0,33584.0,0.24057544]
[1625491868554,0.56027544,33585.0,33584.0,0.24057544]
[1625491869859,0.29957544,33585.0,33584.0,0.24449371]
[1625491872014,0.15090362,33585.0,33584.0,0.24449371]
[1625491872063,0.00226723,33585.0,33584.0,0.24449371]
[1625491872462,0.24284267,33585.0,33584.0,0.48506915]
[1625491873315,0.24284267,33585.0,33584.0,1.53410185]
[1625491874466,0.24284267,33585.0,33584.0,2.2334524]
[1625491874567,0.24284267,33585.0,33584.0,3.45731586]
[1625491876126,0.24284267,33585.0,33584.0,2.2334524]
[1625491876223,0.49497267,33585.0,33584.0,2.2334524]
[1625491882636,0.58427267,33585.0,33584.0,2.2334524]
[1625491883890,0.49497267,33585.0,33584.0,2.2334524]
[1625491884643,0.49497267,33585.0,33584.0,0.48506915]
[1625491884993,0.49497267,33585.0,33584.0,2.2344523]
[1625491887449,0.24284267,33585.0,33584.0,2.2344523]
[1625491888298,0.33104267,33585.0,33584.0,2.2344523]
[1625491889055,0.24284267,33585.0,33584.0,2.2344523]
[1625491891541,0.24284267,33585.0,33584.0,1.99387686]
[1625491891710,0.25879285,33585.0,33584.0,1.99387686]
[1625491892117,0.25879285,33585.0,33584.0,0.94424697]
[1625491892314,0.25652562,33585.0,33584.0,0.94424697]
[1625491892564,0.51649238,33585.0,33584.0,0.24449371]
[1625491893567,0.4297791,33585.0,33584.0,0.24449371]
[1625491893968,0.25652562,33585.0,33584.0,0.24449371]
[1625491894420,0.4300205,33585.0,33584.0,0.24449371]
[1625491894720,0.95028305,33585.0,33584.0,0.24449371]
[1625491895373,0.25652562,33585.0,33584.0,0.24449371]
[1625491896023,0.25652562,33585.0,33584.0,0.30349371]
[1625491896123,1.00987383,33585.0,33584.0,0.30349371]
[1625491896576,0.31552562,33585.0,33584.0,1.00444265]
[1625491896777,0.29957544,33585.0,33584.0,1.00444265]
[1625491897130,0.31552719,33585.0,33584.0,1.00444265]
[1625491897277,0.95154809,33585.0,33584.0,1.00444265]
[1625491897375,0.93559634,33585.0,33584.0,1.00444265]
[1625491897680,0.41452516,33585.0,33584.0,2.05660166]
[1625491898281,0.32766836,33585.0,33584.0,3.28406636]
[1625491898579,0.32766836,33585.0,33584.0,3.5246418]
[1625491899132,0.50182238,33585.0,33584.0,4.92882922]
[1625491900183,0.32766836,33585.0,33584.0,4.92882922]
[1625491900733,0.24057544,33585.0,33584.0,4.92882922]
[1625491901233,0.24057544,33585.0,33584.0,4.94027163]